bitfinex-derivatives/quotes_BTCF0:USTF0_20241109
["timestamp","ask_amount","ask_price","bid_price","bid_amount"]
[1731116950134,0.3608,76408.0,76406.0,0.06539]
[1731116951541,0.3608,76408.0,76407.0,0.065389]
[1731116951834,0.3608,76408.0,76407.0,0.13810973]
[1731116952430,0.3608,76408.0,76400.0,0.0451]
[1731116952634,0.065393,76404.0,76400.0,0.110495]
[1731116952838,0.07272073,76401.0,76400.0,0.0061]
[1731116953041,0.07272073,76401.0,76399.0,0.3608]
[1731116953042,0.08766552,76401.0,76399.0,0.3608]
[1731116953431,0.08766552,76401.0,76396.0,0.0061]
[1731116953432,0.48033979,76400.0,76396.0,0.0061]
[1731116953736,0.07272073,76397.0,76396.0,0.0061]
[1731116953939,0.08766362,76397.0,76392.0,0.0061]
[1731116954237,0.07272073,76393.0,76392.0,0.0061]
[1731116954450,0.065405,76389.0,76388.0,0.0061]
[1731116954633,0.15316738,76389.0,76385.0,0.00196366]
[1731116954836,0.01504165,76388.0,76385.0,0.00196366]
[1731116955129,0.01504165,76387.0,76385.0,0.00196366]
[1731116955329,0.01504165,76386.0,76385.0,0.00196366]
[1731116955541,0.01504165,76388.0,76385.0,0.00196366]
[1731116956131,0.01504165,76387.0,76385.0,0.00196366]
[1731116956342,0.01504165,76386.0,76385.0,0.00196366]
[1731116957238,0.01521222,76386.0,76385.0,0.00196366]
[1731116960537,0.44141922,76386.0,76385.0,0.00196366]
[1731116960835,0.44146213,76386.0,76385.0,0.00196366]
[1731116961643,0.065408,76385.0,76384.0,0.0061]
[1731116961936,0.065412,76381.0,76380.0,0.0061]
[1731116962135,0.08066713,76381.0,76380.0,0.09055128]
[1731116964146,0.08083023,76381.0,76380.0,0.09060184]
[1731116964547,0.08072926,76381.0,76380.0,0.09060184]
[1731116965546,0.08072926,76381.0,76380.0,0.15579662]
[1731116965737,0.08072926,76381.0,76380.0,0.09060184]
[1731116965938,0.08072926,76381.0,76380.0,0.15579666]
[1731116966338,0.08072926,76381.0,76380.0,0.06519482]
[1731116967544,0.065413,76380.0,76379.0,0.06519482]
[1731116967744,0.08073076,76380.0,76379.0,0.06519482]
[1731116968342,0.065413,76379.0,76378.0,0.06519482]
[1731116968543,0.08073076,76379.0,76378.0,0.15577068]
[1731116968746,0.08073076,76379.0,76378.0,0.15577082]
[1731116968950,0.08073076,76379.0,76378.0,0.06519482]
[1731116969446,0.065414,76378.0,76377.0,0.06519482]
[1731116969649,0.08073176,76378.0,76377.0,0.15570295]
[1731116971148,0.065414,76378.0,76377.0,0.15570295]
[1731116971344,0.08101378,76378.0,76377.0,0.06519482]
[1731116973448,0.03518539,76378.0,76377.0,0.09046569]
[1731116973650,0.08101378,76378.0,76377.0,0.09046569]
[1731116974048,0.08101378,76378.0,76377.0,0.15561401]
[1731116974551,0.08101378,76378.0,76377.0,0.09046569]
[1731116974951,0.065414,76378.0,76377.0,0.09046569]
[1731116975147,0.08100292,76378.0,76377.0,0.09046569]
[1731116977051,0.08100292,76378.0,76376.0,0.0061]
[1731116977249,0.01558892,76377.0,76376.0,0.0061]
[1731116977453,0.01558892,76377.0,76372.0,0.0061]
[1731116977651,0.01558892,76376.0,76372.0,0.0061]
[1731116977851,0.01558892,76375.0,76372.0,0.0061]
[1731116978048,0.01558892,76374.0,76372.0,0.0061]
[1731116978248,0.01558892,76373.0,76372.0,0.0061]
[1731116978444,0.01558892,76373.0,76371.0,0.07290769]
[1731116978653,0.071514,76378.0,76371.0,0.07290769]
[1731116978654,0.01558892,76372.0,76371.0,0.07290769]
[1731116979649,0.01558892,76372.0,76370.0,0.426941]
[1731116979853,0.01558892,76371.0,76370.0,0.426221]
[1731116980358,0.01558892,76371.0,76370.0,0.3608]
[1731116981560,0.01558892,76371.0,76370.0,0.426221]
[1731116985061,0.01632048,76371.0,76370.0,0.426221]
[1731116985360,0.04245646,76374.0,76370.0,0.74898417]
[1731116985547,0.04245646,76374.0,76373.0,0.09151048]
[1731116985863,0.04245646,76374.0,76373.0,0.19784878]
[1731116986360,0.04245646,76374.0,76373.0,0.28935926]
[1731116986560,0.04245646,76374.0,76373.0,0.4139287]
[1731116986772,0.04245646,76374.0,76373.0,0.28935926]
[1731116986949,0.04245646,76374.0,76373.0,0.19784878]
[1731116987258,0.04245646,76374.0,76373.0,0.28901017]
[1731116987559,0.04245646,76374.0,76373.0,0.41363195]
[1731116988357,0.04245646,76374.0,76373.0,0.32212147]
[1731116989058,0.04245646,76374.0,76373.0,0.41385572]
[1731116989255,0.04245646,76374.0,76373.0,0.32230012]
[1731116990762,0.11536415,76374.0,76373.0,0.32230012]
[1731116990949,0.11536415,76374.0,76373.0,0.42637075]
[1731116991154,0.11536415,76374.0,76373.0,0.32230012]
[1731116991562,0.14579057,76374.0,76373.0,0.32246696]
[1731116991869,0.14579057,76374.0,76373.0,0.32257305]
[1731116992167,0.14579054,76374.0,76373.0,0.32257305]
[1731116992358,0.11536415,76374.0,76373.0,0.09020789]
[1731116992558,0.04245646,76374.0,76369.0,0.065422]
[1731116993858,0.13581039,76378.0,76370.0,0.065421]
[1731116994055,0.02945085,76377.0,76370.0,0.065421]
[1731116994251,0.065416,76376.0,76370.0,0.065421]
[1731116994756,0.065416,76376.0,76371.0,0.06542]
[1731116995263,0.01555563,76375.0,76371.0,0.06542]
[1731116995461,0.01553065,76374.0,76371.0,0.06542]
[1731116995653,0.01553065,76373.0,76371.0,0.06542]
[1731116995856,0.01553056,76372.0,76371.0,0.06542]
[1731116997463,0.01553056,76372.0,76368.0,0.07900769]
[1731116997764,0.04440219,76371.0,76370.0,0.065421]
[1731116998659,0.04440219,76371.0,76370.0,0.26299637]
[1731116998860,0.04440219,76371.0,76370.0,0.38773814]
[1731117000858,0.11660628,76371.0,76370.0,0.065421]
[1731117001163,0.11646184,76371.0,76370.0,0.065421]
[1731117001369,0.10093128,76371.0,76370.0,0.065421]
[1731117001561,0.08743539,76371.0,76370.0,0.065421]
[1731117001755,0.0152313,76371.0,76370.0,0.065421]
[1731117001961,0.08743537,76371.0,76370.0,0.065421]
[1731117002161,0.11599393,76371.0,76370.0,0.065421]
[1731117002557,0.08743537,76371.0,76370.0,0.065421]
[1731117003868,0.04727312,76371.0,76370.0,0.065421]
[1731117006166,0.04699139,76371.0,76370.0,0.065421]
[1731117006873,0.04699135,76371.0,76370.0,0.065421]
[1731117007477,0.03204178,76371.0,76370.0,0.065421]
[1731117007665,0.065419,76372.0,76370.0,0.065421]
[1731117009478,0.01487097,76371.0,76370.0,0.065421]
[1731117010568,0.065419,76372.0,76370.0,0.065421]
[1731117011070,0.07039639,76378.0,76368.0,0.07900769]
[1731117011279,0.14367203,76375.0,76368.0,0.0061]
[1731117011480,0.065422,76370.0,76368.0,0.0061]
[1731117011778,0.10000404,76369.0,76368.0,0.065423]
[1731117012579,0.0722042,76369.0,76368.0,0.065423]
[1731117013079,0.0722042,76372.0,76368.0,0.065423]
[1731117013275,0.065419,76373.0,76368.0,0.065423]
[1731117013276,0.0722042,76371.0,76368.0,0.065423]
[1731117013474,0.0722042,76370.0,76368.0,0.065423]
[1731117013679,0.0722042,76369.0,76368.0,0.065423]
[1731117014173,0.0722042,76371.0,76368.0,0.065423]
[1731117014368,0.0722042,76370.0,76368.0,0.065423]
[1731117014573,0.0722042,76369.0,76368.0,0.065423]
[1731117015379,0.0722042,76369.0,76366.0,0.13745196]
[1731117015380,0.04016232,76369.0,76364.0,0.00196417]
[1731117015570,0.065425,76365.0,76364.0,0.00196417]
[1731117015771,0.065425,76365.0,76364.0,0.09254493]
[1731117016171,0.065425,76365.0,76364.0,0.09277425]
[1731117018378,0.065425,76365.0,76364.0,0.15812849]
[1731117019087,0.065425,76365.0,76364.0,0.00196417]
[1731117021184,0.3608,76367.0,76364.0,0.00196417]
[1731117021385,0.3608,76367.0,76366.0,0.07290769]
[1731117021593,0.3608,76367.0,76366.0,0.13826193]
[1731117021786,0.3608,76367.0,76366.0,0.22881383]
[1731117021987,0.3608,76367.0,76366.0,0.22133114]
[1731117022182,0.3608,76367.0,76366.0,0.15590614]
[1731117022693,0.3608,76367.0,76366.0,0.16910112]
[1731117023984,0.3608,76367.0,76366.0,0.23452612]
[1731117024584,0.3608,76367.0,76366.0,0.30743381]
[1731117024788,0.3608,76367.0,76366.0,0.22888459]
[1731117024984,0.27567787,76367.0,76366.0,0.33691072]
[1731117025390,0.27567787,76367.0,76366.0,0.33698759]
[1731117027192,0.36758,76374.0,76366.0,0.27156259]
[1731117027394,0.3608,76374.0,76373.0,0.065419]
[1731117027599,0.3608,76374.0,76373.0,0.33635183]
[1731117030792,0.47993761,76374.0,76373.0,0.03356964]
[1731117030985,0.47993761,76374.0,76365.0,0.3608]
[1731117031188,0.1432091,76371.0,76370.0,0.07290769]
[1731117031693,0.21541576,76371.0,76370.0,0.07290769]
[1731117031895,0.07220666,76371.0,76370.0,0.07290769]
[1731117032684,0.1432091,76371.0,76370.0,0.13832869]
[1731117033088,0.07220666,76371.0,76370.0,0.07290769]
[1731117033389,0.07220666,76371.0,76370.0,0.13832869]
[1731117037794,0.14325341,76373.0,76370.0,0.16422706]
[1731117037994,0.3608,76374.0,76370.0,0.16422706]
[1731117037995,0.3608,76374.0,76372.0,0.065419]
[1731117038294,0.3608,76374.0,76373.0,0.09131937]
[1731117039196,0.3608,76374.0,76373.0,0.15673837]
[1731117040692,0.3608,76374.0,76373.0,0.23514961]
[1731117041495,0.3608,76374.0,76373.0,0.15673837]
[1731117041696,0.3608,76374.0,76373.0,0.23514961]
[1731117041898,0.3608,76374.0,76373.0,0.15673837]
[1731117044799,0.0383,76377.0,76376.0,0.065416]
[1731117045101,0.0383,76377.0,76376.0,0.15673537]
[1731117045602,0.103715,76377.0,76376.0,0.09131937]
[1731117045802,0.103715,76377.0,76372.0,0.065419]
[1731117045803,0.17592049,76377.0,76372.0,0.065419]
[1731117046100,0.10820549,76376.0,76372.0,0.065419]
[1731117046299,0.07220549,76375.0,76373.0,0.065418]
[1731117047105,0.14511318,76375.0,76365.0,0.3608]
[1731117047293,0.07220549,76374.0,76368.0,0.065423]
[1731117047494,0.07290769,76370.0,76365.0,0.3608]
[1731117047708,0.07220549,76369.0,76365.0,0.3608]
[1731117048301,0.3608,76368.0,76362.0,0.065428]
[1731117048504,0.26239202,76367.0,76362.0,0.065428]
[1731117048805,0.26239202,76367.0,76359.0,0.07290769]
[1731117049104,0.07220549,76366.0,76359.0,0.07290769]
[1731117049318,0.07220549,76366.0,76357.0,0.18382922]
[1731117049319,0.07220549,76365.0,76363.0,0.07290769]
[1731117049494,0.07220549,76364.0,76363.0,0.07290769]
[1731117051201,0.07220549,76364.0,76363.0,0.43370769]
[1731117052706,0.07220549,76364.0,76363.0,0.3608]
[1731117052894,0.0384,76365.0,76363.0,0.63450539]
[1731117053091,0.0384,76365.0,76364.0,0.2007977]
[1731117058807,0.13167283,76366.0,76364.0,0.2007977]
[1731117059007,0.13167283,76366.0,76363.0,0.3616]
[1731117059507,0.13167283,76366.0,76363.0,0.3608]
[1731117061104,0.13167283,76366.0,76364.0,0.20047544]
[1731117061409,0.13167283,76366.0,76364.0,0.09145937]
[1731117061703,0.13167283,76366.0,76363.0,0.3608]
[1731117063302,0.06624783,76366.0,76363.0,0.3608]
[1731117063608,0.065426,76364.0,76363.0,0.3608]
[1731117065000,0.0384,76365.0,76358.0,0.09154317]
[1731117065197,0.065431,76359.0,76358.0,0.09154317]
[1731117066099,0.065432,76358.0,76357.0,0.06536797]
[1731117066301,0.065432,76357.0,76356.0,0.06536797]
[1731117066505,0.13833969,76357.0,76356.0,0.15691541]
[1731117066812,0.13833969,76357.0,76356.0,0.06536797]
[1731117067012,0.065433,76356.0,76355.0,0.06536797]
[1731117067208,0.065433,76356.0,76355.0,0.15694771]
[1731117067405,0.065433,76356.0,76355.0,0.06536797]
[1731117067607,0.100733,76356.0,76355.0,0.06536797]
[1731117067910,0.06735041,76356.0,76347.0,0.3608]
[1731117068108,0.07290769,76349.0,76347.0,0.3608]
[1731117068306,0.09749223,76348.0,76347.0,0.3608]
[1731117068804,0.03205223,76348.0,76347.0,0.3608]
[1731117070011,0.065438,76350.0,76347.0,0.3608]
[1731117070213,0.03205205,76349.0,76347.0,0.3608]
[1731117070411,0.065438,76350.0,76347.0,0.3608]
[1731117070606,0.03205188,76349.0,76347.0,0.3608]
[1731117070808,0.07290769,76353.0,76347.0,0.3608]
[1731117071008,0.03205214,76352.0,76347.0,0.3608]
[1731117071310,0.07290769,76353.0,76347.0,0.3608]
[1731117071509,0.03205245,76352.0,76347.0,0.3608]
[1731117071703,0.03205245,76351.0,76347.0,0.3608]
[1731117071904,0.03205245,76350.0,76347.0,0.3608]
[1731117072103,0.03205245,76349.0,76347.0,0.3608]
[1731117072301,0.07290769,76353.0,76347.0,0.3608]
[1731117072508,0.0320522,76352.0,76347.0,0.3608]
[1731117072706,0.065439,76350.0,76347.0,0.3608]
[1731117072910,0.0320522,76349.0,76347.0,0.3608]
[1731117073214,0.065439,76350.0,76347.0,0.3608]
[1731117073515,0.03205245,76349.0,76347.0,0.3608]
[1731117073716,0.065439,76350.0,76347.0,0.3608]
[1731117073910,0.03205245,76349.0,76347.0,0.3608]
[1731117074118,0.065439,76350.0,76347.0,0.3608]
[1731117074306,0.03205245,76349.0,76347.0,0.3608]
[1731117074509,0.03205245,76348.0,76347.0,0.3608]
[1731117076011,0.03205245,76348.0,76347.0,0.56205025]
[1731117076012,0.02614437,76348.0,76347.0,0.56205025]
[1731117076215,0.06544,76348.0,76347.0,0.56205025]
[1731117078616,0.07290769,76349.0,76347.0,0.56205025]
[1731117078926,0.07290769,76349.0,76348.0,0.20125025]
[1731117079814,0.13969574,76353.0,76348.0,0.20125025]
[1731117080015,0.0061,76356.0,76350.0,0.07290769]
[1731117080217,0.527833,76357.0,76355.0,0.07836032]
[1731117080417,0.527113,76357.0,76356.0,0.17023041]
[1731117080817,0.527113,76357.0,76356.0,0.16987377]
[1731117081020,0.3608,76357.0,76356.0,0.16987377]
[1731117081222,0.42627179,76357.0,76356.0,0.09151345]
[1731117081625,0.3608,76357.0,76356.0,0.15694645]
[1731117081816,0.3608,76357.0,76356.0,0.26601486]
[1731117082919,0.3608,76357.0,76356.0,0.20058186]
[1731117083131,0.39285057,76357.0,76350.0,0.13834569]
[1731117083325,0.03205057,76356.0,76350.0,0.13834569]
[1731117083524,0.03205057,76355.0,76350.0,0.13834569]
[1731117083729,0.3608,76357.0,76350.0,0.13834569]
[1731117083926,0.3608,76357.0,76350.0,0.07290769]
[1731117084123,0.3608,76357.0,76351.0,0.065437]
[1731117084624,0.3608,76357.0,76353.0,0.065436]
[1731117084822,0.3608,76357.0,76355.0,0.13834169]
[1731117084823,0.03204989,76356.0,76355.0,0.13834169]
[1731117085123,0.0061,76361.0,76360.0,0.06543]
[1731117085330,0.1008,76367.0,76362.0,0.065428]
[1731117085331,0.0061,76366.0,76362.0,0.065428]
[1731117085528,0.03204718,76365.0,76362.0,0.065428]
[1731117085725,0.1008,76367.0,76362.0,0.065428]
[1731117085928,0.03204655,76366.0,76362.0,0.065428]
[1731117086233,0.03204655,76365.0,76362.0,0.065428]
[1731117086528,0.16778193,76367.0,76362.0,0.065428]
[1731117086725,0.03204655,76366.0,76362.0,0.065428]
[1731117086925,0.03204655,76365.0,76362.0,0.065428]
[1731117087134,0.03204655,76364.0,76362.0,0.065428]
[1731117087321,0.07290769,76368.0,76362.0,0.065428]
[1731117087322,0.03204655,76363.0,76362.0,0.065428]
[1731117090025,0.03204673,76363.0,76362.0,0.065428]
[1731117091126,0.065424,76367.0,76362.0,0.23544284]
[1731117091328,0.065424,76367.0,76363.0,0.09161014]
[1731117091526,0.065424,76367.0,76364.0,0.09161014]
[1731117091840,0.065425,76366.0,76365.0,0.06534295]
[1731117092036,0.13833269,76366.0,76365.0,0.06534295]
[1731117092332,0.13833269,76366.0,76364.0,0.06534295]
[1731117092521,0.07290769,76365.0,76363.0,0.06534295]
[1731117093627,0.14581538,76365.0,76363.0,0.06534295]
[1731117093827,0.065426,76364.0,76362.0,0.06534295]
[1731117094129,0.14581538,76365.0,76362.0,0.06534295]
[1731117094333,0.3973,76364.0,76358.0,0.06534295]
[1731117094534,0.065429,76361.0,76359.0,0.06534295]
[1731117094743,0.1008,76361.0,76354.0,0.06534295]
[1731117094928,0.13834069,76356.0,76354.0,0.06534295]
[1731117095731,0.13834069,76356.0,76353.0,0.06534295]
[1731117095931,0.07290769,76354.0,76353.0,0.06534295]
[1731117096831,0.07290769,76354.0,76352.0,0.06534295]
[1731117097041,0.07290769,76353.0,76347.0,0.3608]
[1731117097227,0.07290769,76349.0,76348.0,0.09175222]
[1731117098125,0.10496058,76349.0,76347.0,0.3608]
[1731117098327,0.03205289,76348.0,76347.0,0.3608]
[1731117099140,0.07290769,76349.0,76347.0,0.3608]
[1731117100334,0.1393286,76349.0,76347.0,0.3608]
[1731117103840,0.06642091,76349.0,76347.0,0.3608]
[1731117104042,0.07290769,76353.0,76347.0,0.3608]
[1731117104534,0.3608,76357.0,76347.0,0.3608]
[1731117104736,0.065435,76355.0,76350.0,0.07290769]
[1731117104938,0.07290769,76356.0,76350.0,0.13834569]
[1731117106340,0.07290769,76356.0,76355.0,0.0784047]
[1731117106643,0.07290769,76356.0,76355.0,0.17026014]
[1731117106861,0.04500342,76357.0,76355.0,0.2013654]
[1731117107044,0.04500342,76357.0,76356.0,0.2013654]
[1731117107239,0.10955931,76357.0,76356.0,0.2013654]
[1731117107540,0.04500342,76357.0,76356.0,0.09185544]
[1731117109338,0.11042966,76357.0,76356.0,0.09185544]
[1731117110742,0.06542624,76357.0,76356.0,0.09185544]
[1731117110942,0.06543,76360.0,76356.0,0.09185544]
[1731117111143,0.065431,76359.0,76357.0,0.09185544]
[1731117111341,0.065431,76359.0,76358.0,0.09185544]
[1731117112842,0.13734018,76361.0,76358.0,0.09135296]
[1731117113148,0.13734018,76361.0,76359.0,0.09135066]
[1731117113351,0.13734018,76361.0,76358.0,0.05227902]
[1731117114043,0.13734018,76361.0,76359.0,0.05227902]
[1731117114249,0.06443249,76361.0,76359.0,0.05227902]
[1731117114451,0.065427,76363.0,76358.0,0.05227902]
[1731117115543,0.06463535,76363.0,76362.0,0.065428]
[1731117115736,0.07290769,76364.0,76362.0,0.065428]
[1731117121252,0.07221459,76363.0,76362.0,0.065428]
[1731117122153,0.07221459,76363.0,76360.0,0.07290769]
[1731117122451,0.07221459,76363.0,76355.0,0.0359]
[1731117122452,0.065429,76361.0,76357.0,0.07290769]
[1731117122651,0.065429,76361.0,76359.0,0.065431]
[1731117122652,0.07221459,76360.0,76359.0,0.065431]
[1731117123048,0.07221459,76363.0,76359.0,0.065431]
[1731117124041,0.07290769,76360.0,76347.0,0.0061]
[1731117124247,0.07290769,76355.0,76349.0,0.07290769]
[1731117124547,0.07221459,76354.0,76351.0,0.065437]
[1731117125151,0.07221459,76354.0,76349.0,0.07290769]
[1731117125448,0.07221459,76354.0,76349.0,0.13834669]
[1731117125948,0.13834169,76355.0,76349.0,0.065439]
[1731117126255,0.065435,76354.0,76349.0,0.065439]
[1731117126453,0.07290769,76355.0,76350.0,0.065438]
[1731117129144,0.13884342,76355.0,76350.0,0.065438]
[1731117129359,0.065435,76354.0,76346.0,0.42896659]
[1731117129560,0.065435,76354.0,76346.0,0.42820659]
[1731117130150,0.13884342,76355.0,76346.0,0.36276459]
[1731117130354,0.065438,76350.0,76346.0,0.36276459]
[1731117130558,0.07290769,76351.0,76346.0,0.36276459]
[1731117130751,0.06544,76349.0,76346.0,0.36276459]
[1731117131958,0.06544,76349.0,76347.0,0.20060288]
[1731117132746,0.07290769,76351.0,76347.0,0.20060288]
[1731117132953,0.06544,76348.0,76347.0,0.20060288]
[1731117136061,0.065441,76347.0,76346.0,0.36352459]
[1731117136260,0.13834869,76347.0,76346.0,0.36276459]
[1731117139266,0.0366,76350.0,76346.0,0.43567228]
[1731117140867,0.07290769,76349.0,76346.0,0.36276459]
[1731117143471,0.13834769,76349.0,76346.0,0.36276459]
[1731117143675,0.07290769,76349.0,76346.0,0.36276459]
[1731117143868,0.06544,76348.0,76346.0,0.36276459]
[1731117144071,0.07290769,76349.0,76347.0,0.20087339]
[1731117144272,0.13834669,76349.0,76348.0,0.20087339]
[1731117146790,0.0655448,76350.0,76348.0,0.20087339]
[1731117146992,0.13834369,76353.0,76349.0,0.09164092]
[1731117147184,0.13834369,76353.0,76352.0,0.07841625]
[1731117147381,0.20441202,76353.0,76352.0,0.09164092]
[1731117148894,0.13897602,76353.0,76352.0,0.09164092]
[1731117149301,0.527593,76356.0,76354.0,0.065434]
[1731117149302,0.00068,76356.0,76354.0,0.065434]
[1731117149490,0.07290769,76360.0,76355.0,0.33875609]
[1731117149690,0.07290769,76360.0,76356.0,0.20012467]
[1731117149891,0.07290769,76360.0,76357.0,0.20012467]
[1731117150097,0.07290769,76360.0,76358.0,0.09164092]
[1731117150295,0.07290769,76360.0,76359.0,0.09164092]
[1731117150989,0.104957,76360.0,76355.0,0.13834169]
[1731117151194,0.03204931,76359.0,76355.0,0.065434]
[1731117151390,0.03204931,76358.0,76355.0,0.065434]
[1731117151592,0.104957,76357.0,76355.0,0.065434]
[1731117151891,0.07290769,76357.0,76355.0,0.065434]
[1731117152297,0.03204946,76356.0,76355.0,0.065434]
[1731117152797,0.03204946,76356.0,76352.0,0.07370769]
[1731117153001,0.07290769,76357.0,76352.0,0.07290769]
[1731117153297,0.03205013,76356.0,76352.0,0.07290769]
[1731117153504,0.03205013,76355.0,76352.0,0.07290769]
[1731117153801,0.07290769,76357.0,76352.0,0.07290769]
[1731117154003,0.03205013,76356.0,76352.0,0.07290769]
[1731117154195,0.03205013,76355.0,76352.0,0.07290769]
[1731117154397,0.07290769,76357.0,76352.0,0.07290769]
[1731117154697,0.03205013,76356.0,76352.0,0.07290769]
[1731117155001,0.03205013,76355.0,76352.0,0.07290769]
[1731117155302,0.07290769,76357.0,76352.0,0.07290769]
[1731117155503,0.03205013,76356.0,76352.0,0.07290769]
[1731117155698,0.03205013,76355.0,76352.0,0.07290769]
[1731117155905,0.07290769,76357.0,76352.0,0.07290769]
[1731117156105,0.03205013,76356.0,76352.0,0.07290769]
[1731117156405,0.03205013,76355.0,76352.0,0.07290769]
[1731117156604,0.07290769,76357.0,76352.0,0.07290769]
[1731117156806,0.03205013,76356.0,76352.0,0.07290769]
[1731117157101,0.03205013,76355.0,76352.0,0.07290769]
[1731117157400,0.03205013,76354.0,76352.0,0.07290769]
[1731117157605,0.07290769,76357.0,76352.0,0.07290769]
[1731117157807,0.03205013,76356.0,76352.0,0.07290769]
[1731117158002,0.03205013,76355.0,76352.0,0.07290769]
[1731117158203,0.03205013,76354.0,76352.0,0.07290769]
[1731117158505,0.07290769,76357.0,76352.0,0.07290769]
[1731117158506,0.03205013,76353.0,76352.0,0.07290769]
[1731117159211,0.07290769,76357.0,76352.0,0.16386961]
[1731117159417,0.13834069,76357.0,76352.0,0.13831584]
[1731117159708,0.065433,76356.0,76352.0,0.13831584]
[1731117162204,0.07290769,76357.0,76352.0,0.13831584]
[1731117162404,0.07290769,76357.0,76354.0,0.065435]
[1731117163310,0.065433,76356.0,76353.0,0.06540815]
[1731117163510,0.065433,76356.0,76353.0,0.13084315]
[1731117164707,0.065434,76355.0,76353.0,0.13084315]
[1731117165309,0.07290769,76357.0,76352.0,0.06540815]
[1731117165509,0.13834369,76353.0,76352.0,0.06540815]
[1731117165710,0.13834369,76353.0,76352.0,0.15652432]
[1731117168016,0.1123,76356.0,76352.0,0.15652432]
[1731117168217,0.065435,76354.0,76352.0,0.06542174]
[1731117168718,0.065437,76352.0,76349.0,0.06542174]
[1731117168919,0.065437,76352.0,76346.0,0.00196459]
[1731117168920,0.065439,76349.0,76346.0,0.00196459]
[1731117169227,0.065441,76348.0,76347.0,0.09132689]
[1731117169922,0.065441,76348.0,76347.0,0.06542616]
[1731117170219,0.065441,76347.0,76346.0,0.06739075]
[1731117170425,0.065441,76347.0,76346.0,0.15900537]
[1731117171728,0.49914869,76347.0,76346.0,0.00196459]
[1731117173723,0.49914869,76347.0,76346.0,0.05429107]
[1731117173933,0.065442,76346.0,76334.0,0.06542616]
[1731117174128,0.3608,76338.0,76329.0,0.0061]
[1731117174344,0.07290769,76330.0,76327.0,0.3608]
[1731117177335,0.13825001,76330.0,76327.0,0.3608]
[1731117178038,0.065457,76328.0,76327.0,0.3608]
[1731117178232,0.065457,76328.0,76322.0,0.065462]
[1731117178422,0.07290769,76325.0,76322.0,0.065462]
[1731117179031,0.07290769,76325.0,76323.0,0.065461]
[1731117181134,0.065457,76328.0,76324.0,0.09179291]
[1731117181337,0.13836469,76328.0,76327.0,0.07831711]
[1731117181531,0.13836469,76328.0,76327.0,0.09179291]
[1731117182441,0.13836469,76328.0,76327.0,0.09151506]
[1731117185745,0.13836469,76328.0,76324.0,0.06546]
[1731117186135,0.07290769,76327.0,76324.0,0.06546]
[1731117187646,0.07290769,76327.0,76325.0,0.16972372]
[1731117187843,0.07290769,76327.0,76326.0,0.09145843]
[1731117189148,0.07290769,76327.0,76324.0,0.06546]
[1731117189451,0.13836569,76327.0,76324.0,0.06546]
[1731117190847,0.13836569,76327.0,76324.0,0.10459208]
[1731117191346,0.07290769,76327.0,76324.0,0.03913208]
[1731117191551,0.07290769,76327.0,76325.0,0.06546]
[1731117192148,0.07290769,76327.0,76325.0,0.10459208]
[1731117192347,0.065457,76328.0,76325.0,0.03913208]
[1731117192547,0.43370769,76331.0,76326.0,0.065458]
[1731117192749,0.43370769,76331.0,76326.0,0.103958]
[1731117192750,0.065456,76330.0,76326.0,0.103958]
[1731117192948,0.065456,76329.0,76326.0,0.103958]
[1731117193554,0.065457,76328.0,76326.0,0.103958]
[1731117193759,0.43438769,76331.0,76326.0,0.0385]
[1731117193955,0.43370769,76331.0,76328.0,0.065457]
[1731117194459,0.49916269,76331.0,76328.0,0.065457]
[1731117194649,0.13835869,76335.0,76331.0,0.065455]
[1731117194857,0.13835869,76335.0,76332.0,0.065453]
[1731117195855,0.0061,76337.0,76336.0,0.06545]
[1731117196059,0.3608,76338.0,76337.0,0.065449]
[1731117196266,0.0061,76342.0,76340.0,0.065446]
[1731117196466,0.065445,76343.0,76341.0,0.19148901]
[1731117196657,0.065445,76343.0,76342.0,0.09115542]
[1731117196966,0.06544,76348.0,76345.0,0.065443]
[1731117197155,0.06544,76348.0,76345.0,0.23493129]
[1731117197358,0.06544,76348.0,76346.0,0.16948829]
[1731117197655,0.06544,76348.0,76347.0,0.09115542]
[1731117198255,0.06544,76348.0,76347.0,0.19957308]
[1731117200569,0.3608,76349.0,76347.0,0.26501408]
[1731117200765,0.3608,76349.0,76348.0,0.15659542]
[1731117203572,0.426239,76349.0,76348.0,0.09115542]
[1731117204162,0.463439,76349.0,76344.0,0.065443]
[1731117204368,0.07290769,76345.0,76344.0,0.065443]
[1731117206857,0.07290769,76345.0,76341.0,0.03917366]
[1731117207064,0.43370769,76342.0,76335.0,0.0008]
[1731117207365,0.07290769,76336.0,76331.0,0.00196504]
[1731117207566,0.07290769,76332.0,76331.0,0.00196504]
[1731117208368,0.07290769,76332.0,76328.0,0.3608]
[1731117210068,0.07290769,76329.0,76328.0,0.3608]
[1731117213279,0.07290769,76329.0,76325.0,0.065459]
[1731117213577,0.07290769,76329.0,76323.0,0.3608]
[1731117213882,0.07290769,76329.0,76326.0,0.065459]
[1731117214566,0.0061,76332.0,76323.0,0.43370769]
[1731117214770,0.0061,76332.0,76329.0,0.065456]
[1731117214968,0.43642,76335.0,76329.0,0.065456]
[1731117215175,0.4357,76335.0,76329.0,0.065456]
[1731117215577,0.4357,76335.0,76320.0,0.07290769]
[1731117215578,0.14581538,76330.0,76318.0,0.0061]
[1731117215765,0.065468,76316.0,76314.0,0.0061]
[1731117215965,0.14600769,76315.0,76307.0,0.3608]
[1731117216176,0.06547,76313.0,76307.0,0.3608]
[1731117217283,0.0731,76315.0,76310.0,0.065473]
[1731117217578,0.0372,76315.0,76310.0,0.065473]
[1731117218083,0.10056,76317.0,76310.0,0.065473]
[1731117218979,0.10056,76318.0,76307.0,0.3608]
[1731117219280,0.10056,76318.0,76313.0,0.14381733]
[1731117219281,0.05469441,76318.0,76313.0,0.14381733]
[1731117219484,0.05469441,76318.0,76314.0,0.09204477]
[1731117219673,0.05469441,76318.0,76315.0,0.09204477]
[1731117219867,0.066145,76319.0,76316.0,0.09204477]
[1731117219868,0.02615278,76319.0,76316.0,0.09204477]
[1731117220072,0.0061,76320.0,76317.0,0.12854477]
[1731117220274,0.0061,76320.0,76319.0,0.06522444]
[1731117220471,0.065463,76321.0,76319.0,0.15726921]
[1731117220681,0.065463,76321.0,76319.0,0.06522444]
[1731117222378,0.43692,76323.0,76319.0,0.06522444]
[1731117222379,0.36152,76323.0,76319.0,0.06522444]
[1731117222682,0.3608,76323.0,76321.0,0.06520361]
[1731117223383,0.3608,76323.0,76322.0,0.06520361]
[1731117223581,0.3608,76323.0,76322.0,0.15642673]
[1731117223786,0.426262,76323.0,76321.0,0.06520361]